fUSD/lending_fUSD_20250606
["ID","MTS","AMOUNT","RATE_DAILY","PERIOD"]
[364794525,1749243057703,-480.0,0.0002789,5]
[364794526,1749243057712,-480.0,0.0002789,5]
[364794527,1749243057721,-480.0,0.0002789,5]
[364794528,1749243057731,-480.0,0.0002789,5]
[364794529,1749243057741,-480.0,0.0002789,5]
[364794530,1749243057750,-480.0,0.0002789,5]
[364794531,1749243057760,-480.0,0.0002789,5]
[364794532,1749243057770,-480.0,0.0002789,5]
[364794533,1749243057780,-480.0,0.0002789,5]
[364794534,1749243057789,-480.0,0.0002789,5]
[364794535,1749243057799,-480.0,0.0002789,5]
[364794536,1749243057808,-480.0,0.0002789,5]
[364794537,1749243057818,-480.0,0.0002789,5]
[364794538,1749243057827,-719.0,0.0002789,5]
[364794539,1749243057838,-480.0,0.0002789,5]
[364794540,1749243057848,-480.0,0.0002789,5]
[364794541,1749243057857,-480.0,0.0002789,5]
[364794542,1749243057866,-592.92032422,0.0002789,5]
[364794543,1749243057876,-480.0,0.0002789,5]
[364794544,1749243057885,-480.0,0.0002789,5]
[364794545,1749243057895,-480.0,0.0002789,5]
[364794546,1749243057905,-489.12,0.0002789,5]
[364794547,1749243057914,-480.0,0.0002789,5]
[364794548,1749243057924,-480.0,0.0002789,5]
[364794549,1749243057933,-480.0,0.0002789,5]
[364794550,1749243057942,-480.0,0.0002789,5]
[364794551,1749243057952,-480.0,0.0002789,5]
[364794552,1749243057962,-480.0,0.0002789,5]
[364794553,1749243057970,-538.29,0.0002789,5]
[364794554,1749243057980,-480.0,0.0002789,5]
[364794555,1749243057989,-480.0,0.0002789,5]
[364794556,1749243057999,-480.0,0.0002789,5]
[364794557,1749243058008,-480.0,0.0002789,5]
[364794558,1749243058017,-480.0,0.0002789,5]
[364794559,1749243058027,-480.0,0.0002789,5]
[364794560,1749243058037,-480.0,0.0002789,5]
[364794561,1749243058046,-480.0,0.0002789,5]
[364794562,1749243058055,-671.81,0.0002789,5]
[364794563,1749243058064,-480.0,0.0002789,5]
[364794564,1749243058074,-480.0,0.0002789,5]
[364794565,1749243058083,-480.0,0.0002789,5]
[364794566,1749243058096,-480.0,0.0002789,5]
[364794567,1749243058106,-480.0,0.0002789,5]
[364794568,1749243058115,-480.0,0.0002789,5]
[364794569,1749243058124,-480.0,0.0002789,5]
[364794570,1749243058134,-480.0,0.0002789,5]
[364794571,1749243058143,-480.0,0.0002789,5]
[364794572,1749243058153,-480.0,0.0002789,5]
[364794573,1749243058162,-480.0,0.0002789,5]
[364794574,1749243058175,-480.0,0.0002789,5]
[364794575,1749243058184,-480.0,0.0002789,5]
[364794576,1749243058194,-854.04,0.0002789,5]
[364794577,1749243058203,-480.0,0.0002789,5]
[364794578,1749243058213,-480.0,0.0002789,5]
[364794579,1749243058223,-480.0,0.0002789,5]
[364794580,1749243058233,-480.0,0.0002789,5]
[364794581,1749243058242,-480.0,0.0002789,5]
[364794582,1749243058255,-480.0,0.0002789,5]
[364794583,1749243058264,-480.0,0.0002789,5]
[364794584,1749243058273,-480.0,0.0002789,5]
[364794585,1749243058282,-480.0,0.0002789,5]
[364794586,1749243058291,-521.36,0.0002789,5]
[364794587,1749243058300,-662.19,0.0002789,5]
[364794588,1749243058309,-480.0,0.0002789,5]
[364794589,1749243058318,-480.0,0.0002789,5]
[364794590,1749243058327,-480.0,0.0002789,5]
[364794591,1749243058338,-480.0,0.0002789,5]
[364794592,1749243058347,-480.0,0.0002789,5]
[364794593,1749243058356,-480.0,0.0002789,5]
[364794594,1749243058366,-480.0,0.0002789,5]
[364794595,1749243058374,-480.0,0.0002789,5]
[364794596,1749243058384,-480.0,0.0002789,5]
[364794597,1749243058395,-480.0,0.0002789,5]
[364794598,1749243058404,-480.0,0.0002789,5]
[364794599,1749243058414,-480.0,0.0002789,5]
[364794600,1749243058424,-673.66,0.0002789,5]
[364794601,1749243058434,-480.0,0.0002789,5]
[364794602,1749243058444,-480.0,0.0002789,5]
[364794603,1749243058454,-480.0,0.0002789,5]
[364794604,1749243058464,-480.0,0.0002789,5]
[364794605,1749243058474,-480.0,0.0002789,5]
[364794606,1749243058484,-683.89,0.0002789,5]
[364794607,1749243058493,-480.0,0.0002789,5]
[364794608,1749243058503,-480.0,0.0002789,5]
[364794609,1749243058512,-480.0,0.0002789,5]
[364794610,1749243058521,-480.0,0.0002789,5]
[364794611,1749243058531,-480.0,0.0002789,5]
[364794612,1749243058541,-480.0,0.0002789,5]
[364794613,1749243058551,-480.0,0.0002789,5]
[364794614,1749243058561,-480.0,0.0002789,5]
[364794615,1749243058570,-480.0,0.0002789,5]
[364794616,1749243058580,-480.0,0.0002789,5]
[364794617,1749243058591,-480.0,0.0002789,5]
[364794618,1749243058600,-480.0,0.0002789,5]
[364794619,1749243058610,-652.89,0.0002789,5]
[364794620,1749243058620,-480.0,0.0002789,5]
[364794621,1749243058630,-603.40074603,0.0002789,5]
[364794622,1749243058639,-480.0,0.0002789,5]
[364794623,1749243058649,-482.77,0.0002789,5]
[364794624,1749243058658,-480.0,0.0002789,5]
[364794625,1749243058669,-480.0,0.0002789,5]
[364794626,1749243058679,-405.91787593,0.0002789,5]
[364794627,1749243058688,-480.0,0.0002789,5]
[364794628,1749243058698,-480.0,0.0002789,5]
[364794629,1749243058707,-480.0,0.0002789,5]
[364794630,1749243058717,-499.91,0.0002789,5]
[364794631,1749243058726,-480.0,0.0002789,5]
[364794632,1749243058736,-480.0,0.0002789,5]
[364794633,1749243058745,-480.0,0.0002789,5]
[364794634,1749243058755,-1000.0,0.0002789,2]
[364794635,1749243058764,-480.0,0.0002789,5]
[364794636,1749243058773,-480.0,0.0002789,5]
[364794637,1749243058783,-624.77,0.0002789,5]
[364794638,1749243058792,-480.0,0.0002789,5]
[364794639,1749243058802,-480.0,0.0002789,5]
[364794640,1749243058811,-489.46,0.0002789,5]
[364794641,1749243058821,-480.0,0.0002789,5]
[364794642,1749243058830,-686.67,0.0002789,5]
[364794643,1749243058841,-480.0,0.0002789,5]
[364794644,1749243058850,-1367.43,0.0002789,5]
[364794645,1749243058859,-788.5,0.0002789,5]
[364794646,1749243058868,-480.0,0.0002789,5]
[364794647,1749243058879,-485.29,0.0002789,5]
[364794648,1749243058888,-480.0,0.0002789,5]
[364794649,1749243058898,-5498.69,0.0002789,5]
[364794650,1749243058907,-677.14,0.0002789,5]
[364794651,1749243058917,-480.0,0.0002789,5]
[364794652,1749243058925,-1585.1,0.0002789,5]
[364794653,1749243058935,-415.36676918,0.0002789,5]
[364794654,1749243058944,-480.0,0.0002789,5]
[364794655,1749243058952,-236.139816,0.0002789,5]
[364794656,1749243058962,-630.63,0.0002789,5]
[364794657,1749243058971,-1222.53,0.0002789,5]
[364794658,1749243058980,-703.04,0.0002789,5]
[364794659,1749243058989,-883.29,0.0002789,5]
[364794660,1749243059000,-480.0,0.0002789,5]
[364794661,1749243059008,-480.0,0.0002789,5]
[364794662,1749243059019,-598.93,0.0002789,5]
[364794663,1749243059027,-480.0,0.0002789,5]
[364794664,1749243059036,-1506.81,0.0002789,5]
[364794665,1749243059045,-560.68,0.0002789,5]
[364794666,1749243059054,-480.0,0.0002789,5]
[364794667,1749243059071,-480.0,0.0002789,5]
[364794668,1749243059083,-480.0,0.0002789,5]
[364794669,1749243059093,-564.74,0.0002789,5]
[364794670,1749243059103,-1018.57,0.0002789,5]
[364794671,1749243059113,-480.0,0.0002789,5]
[364794672,1749243059123,-480.0,0.0002789,5]
[364794673,1749243059134,-665.17,0.0002789,5]
[364794674,1749243059143,-570.66635286,0.0002789,5]
[364794675,1749243059170,-699.16582968,0.0002789,5]
[364794676,1749243059181,-96.68781746,0.0002789,5]
[364794677,1749243059190,-594.29124577,0.0002789,5]
[364794678,1749243059201,-1253.62875423,0.0002789,5]
[364794679,1749243059211,-253.888849,0.0002789,5]
[364794680,1749243059220,-627.09,0.0002789,5]
[364794681,1749243059229,-484.31,0.0002789,5]
[364794682,1749243059239,-490.17,0.0002789,5]
[364794683,1749243059249,-480.0,0.0002789,5]
[364794684,1749243059259,-480.0,0.0002789,5]
[364794685,1749243059268,-113.48147413,0.0002789,5]
[364794686,1749243104291,150.0,0.000356,120]
[364794688,1749243165851,150.0,0.000356,120]
[364794689,1749243227057,150.0,0.000356,120]
[364794690,1749243288627,150.0,0.000356,120]
[364794692,1749243350133,150.0,0.000356,120]
[364794693,1749243358529,613.0,0.0003561,120]
[364794694,1749243387224,247.27,0.00035616,120]
[364794695,1749243411472,150.0,0.000356,120]
[364794696,1749243472984,150.0,0.000356,120]
[364794697,1749243491572,150.0,1e-08,2]
[364794699,1749243533665,603.14579529,0.000356,120]
[364794700,1749243534917,150.0,0.000356,120]
[364794701,1749243547514,15061.779484,7.945e-05,2]
[364794702,1749243588505,183.14,0.00016712,2]
[364794703,1749243596896,166.34883357,0.000356,120]
[364794704,1749243609200,256.0,0.00025913,120]
[364794705,1749243609401,256.0,0.00029152,120]
[364794706,1749243609645,256.0,0.00032391,120]
[364794707,1749243747610,300.0,0.00033904,120]
[364794708,1749243918654,1500.0,0.00025768,120]
[364794709,1749243973632,2000.0,0.00025734,120]
[364794710,1749243979196,151.0,0.00016712,2]
[364794792,1749244186704,162.64,0.00013699,2]
[364794795,1749244232134,-162.64,0.00020187,2]
[364794796,1749244232144,-206.0,0.00023827,2]
[364794797,1749244232153,-305.388,0.00024653,2]
[364794798,1749244232247,-828.922,0.00024653,2]
[364794799,1749244232257,-153.0,0.00025,7]
[364794800,1749244232268,-462.26532362,0.00025537,2]
[364794801,1749244232284,-2751.0,0.0002557,2]
[364794802,1749244232294,-920.18,0.00025625,2]
[364794803,1749244232303,-655.5,0.00025646,2]
[364794804,1749244232313,-158.3600475,0.00025666,2]
[364794805,1749244232322,-1200.0,0.00025733,2]
[364794806,1749244232331,-1634.59,0.00025734,2]
[364794807,1749244232342,-300.0,0.00025766,2]
[364794808,1749244232351,-3747.59255969,0.00025767,2]
[364795353,1749244238178,-1254.34857907,0.00025767,2]
[364795355,1749244238190,-2027.1952,0.00025767,2]
[364795361,1749244238236,-26461.29366124,0.00025767,2]
[364795363,1749244238246,-28496.36908404,0.00025811,2]
[364795365,1749244238255,-6235.71,0.00025821,2]
[364795367,1749244238265,-200.0,0.00025821,2]
[364795369,1749244238274,-172.58,0.00025825,2]
[364795371,1749244238283,-184.16,0.00025866,2]
[364795373,1749244238292,-1000.0,0.00025895,2]
[364795375,1749244238306,-206.0,0.00025955,5]
[364795377,1749244238315,-1000.0,0.00026016,2]
[364795380,1749244238325,-1476.22,0.00026067,2]
[364795382,1749244238335,-250.0,0.00026181,2]
[364795383,1749244238344,-153.89,0.00026207,2]
[364795386,1749244238354,-150.0,0.00026232,2]
[364795388,1749244238363,-168.26,0.00026317,2]
[364795390,1749244238372,-1957.856,0.00026335,2]
[364795392,1749244238382,-207.4,0.00026335,2]
[364795394,1749244238391,-2030.296672,0.0002639,2]
[364795396,1749244238402,-167.29,0.00026399,2]
[364795398,1749244238412,-2105.41764886,0.00026445,2]
[364795400,1749244238421,-2183.31810187,0.000265,2]
[364795402,1749244238431,-158.3600475,0.0002651,2]
[364795404,1749244238440,-12079.66,0.00026524,2]
[364795406,1749244238450,-2264.10087164,0.00026555,2]
[364795408,1749244238459,-655.5,0.00026607,2]
[364795410,1749244238468,-390.01660388,0.0002661,2]
[364795412,1749244238477,-7824.53713451,0.0002661,2]
[364795414,1749244238487,-2487.9181,0.00026655,2]
[364795416,1749244238497,-227.6154,0.00026655,2]
[364795418,1749244238506,-3954.7628,0.00026655,2]
[364795420,1749244238516,-2081.3973,0.00026655,2]
[364795422,1749244238525,-162.64,0.00026676,2]
[364795424,1749244238535,-303.92,0.00026725,30]
[364795426,1749244238544,-23900.0,0.00026755,2]
[364795428,1749244238553,-150.0,0.0002681,2]
[364795430,1749244238563,-151.0,0.00026899,2]
[364795432,1749244238572,-1000.0,0.00026899,2]
[364795434,1749244238581,-300.0,0.00026899,2]
[364795436,1749244238592,-500.0,0.00026899,2]
[364795438,1749244238601,-300.0,0.00026899,2]
[364795440,1749244238611,-500.0,0.00026899,2]
[364795442,1749244238620,-500.0,0.00026899,2]
[364795444,1749244238629,-500.0,0.00026899,2]
[364795446,1749244238639,-500.0,0.00026899,2]
[364795448,1749244238648,-500.0,0.00026899,2]
[364795450,1749244238657,-500.0,0.00026899,2]
[364795452,1749244238668,-500.0,0.00026899,2]
[364795454,1749244238678,-500.0,0.00026899,2]
[364795456,1749244238688,-500.0,0.00026899,2]
[364795458,1749244238699,-500.0,0.00026899,2]
[364795460,1749244238708,-375.2746503,0.00026899,2]
[364795462,1749244238718,-151.0,0.00026899,2]
[364795464,1749244238727,-300.0,0.000269,9]
[364795466,1749244238736,-1134.31,0.00026917,2]
[364795468,1749244238746,-1070.07596361,0.00026925,2]
[364795470,1749244238756,-151.0,0.00026954,2]
[364795472,1749244238765,-150.0,0.00026968,7]
[364795474,1749244238774,-4140.09603219,0.00026997,2]
[364795476,1749244238784,-151.0,0.00027009,2]
[364795478,1749244238793,-2500.0,0.00027026,2]
[364795480,1749244238802,-151.0,0.00027064,2]
[364795482,1749244238812,-21097.3773,0.00027097,2]
[364795484,1749244238821,-5024.81271725,0.0002711,2]
[364795486,1749244238830,-46683.89630717,0.00027126,2]
[364795489,1749244238847,-476.30225639,0.00027126,2]
[364795491,1749244238856,-150.0,0.00027146,2]
[364795493,1749244238866,-388.3605436,0.00027187,2]
[364795495,1749244238877,-611.6394564,0.00027187,2]
[364795497,1749244238887,-178.47254352,0.00027187,2]
[364795668,1749244240645,-321.52745648,0.00027187,2]
[364795670,1749244240654,-58841.8512292,0.00027187,2]
[364795672,1749244240664,-187582.5771,0.00027197,2]
[364795674,1749244240675,-171.1,0.0002721,2]
[364795676,1749244240684,-4906.89804643,0.00027275,2]
[364795678,1749244240693,-271.61,0.00027293,2]
[364795680,1749244240702,-353.7104444,0.00027297,2]
[364795682,1749244240712,-150.0,0.00027331,2]
[364795708,1749244240947,-4140.09603211,0.00027358,2]
[364795710,1749244240956,-150.0,0.00027366,2]
[364795712,1749244240965,-132394.165266,0.00027387,2]
[364795714,1749244240974,-51292.8425494,0.00027387,2]
[364795716,1749244240984,-152.54,0.00027387,2]
[364795718,1749244240993,-29420.9256146,0.00027387,2]
[364795720,1749244241002,-25646.4212747,0.00027387,2]
[364795722,1749244241011,-500.0,0.00027396,2]
[364795724,1749244241021,-500.0,0.00027396,2]
[364795726,1749244241031,-500.0,0.00027396,2]
[364795728,1749244241040,-500.0,0.00027396,2]
[364795730,1749244241049,-500.0,0.00027396,2]
[364795732,1749244241059,-250.60855956,0.00027396,2]
[364795734,1749244241067,-500.0,0.00027396,2]
[364795736,1749244241077,-500.0,0.00027396,2]
[364795738,1749244241085,-500.0,0.00027396,2]
[364795740,1749244241094,-500.0,0.00027396,2]
[364795742,1749244241103,-500.0,0.00027396,2]
[364795744,1749244241112,-446.16593202,0.00027396,2]
[364795746,1749244241122,-500.0,0.00027396,2]
[364795748,1749244241131,-530.0,0.00027396,2]
[364795750,1749244241140,-500.0,0.00027396,2]
[364795752,1749244241149,-199.09482356,0.00027396,2]
[364795754,1749244241160,-500.0,0.00027396,2]
[364795756,1749244241169,-500.0,0.00027396,2]
[364795758,1749244241178,-500.0,0.00027396,2]
[364795760,1749244241187,-500.0,0.00027396,2]
[364795762,1749244241196,-500.0,0.00027396,2]
[364795764,1749244241205,-500.0,0.00027396,2]
[364795766,1749244241214,-480.0,0.00027397,5]
[364795767,1749244241224,-480.0,0.00027397,5]
[364795769,1749244241234,-480.0,0.00027397,5]
[364795772,1749244241243,-577.7304328,0.00027397,5]
[364795774,1749244241252,-480.0,0.00027397,5]
[364795775,1749244241263,-480.0,0.00027397,5]
[364795778,1749244241273,-480.0,0.00027397,5]
[364795779,1749244241282,-480.0,0.00027397,5]
[364795782,1749244241291,-727.0,0.00027397,5]
[364795783,1749244241300,-480.0,0.00027397,5]
[364795785,1749244241309,-743.648709,0.00027397,5]
[364795787,1749244241318,-480.0,0.00027397,5]
[364795789,1749244241328,-482.16,0.00027397,5]
[364795791,1749244241337,-480.0,0.00027397,5]
[364795793,1749244241346,-480.0,0.00027397,5]
[364795795,1749244241355,-480.0,0.00027397,5]
[364795797,1749244241364,-599.17,0.00027397,5]
[364795799,1749244241373,-480.0,0.00027397,5]
[364795801,1749244241382,-480.0,0.00027397,5]
[364795803,1749244241391,-480.0,0.00027397,5]
[364795805,1749244241400,-480.0,0.00027397,5]
[364795807,1749244241409,-587.98,0.00027397,5]
[364795809,1749244241418,-480.0,0.00027397,5]
[364795811,1749244241427,-487.2,0.00027397,5]
[364795813,1749244241437,-480.0,0.00027397,5]
[364795815,1749244241446,-480.0,0.00027397,5]
[364795817,1749244241455,-361.02996678,0.00027397,5]
[364795819,1749244241464,-480.0,0.00027397,5]
[364795821,1749244241473,-480.0,0.00027397,5]
[364795823,1749244241482,-422.2022803,0.00027397,5]
[364795825,1749244241491,-480.0,0.00027397,5]
[364795827,1749244241501,-480.0,0.00027397,5]
[364795829,1749244241510,-480.0,0.00027397,5]
[364795830,1749244241519,-480.0,0.00027397,5]
[364795831,1749244241528,-605.77,0.00027397,5]
[364795832,1749244241538,-480.0,0.00027397,5]
[364795833,1749244241547,-550.76,0.00027397,5]
[364795834,1749244241556,-233.18133329,0.00027397,5]
[364795835,1749244241565,-480.0,0.00027397,5]
[364795836,1749244241574,-480.0,0.00027397,5]
[364795837,1749244241582,-480.0,0.00027397,5]
[364795838,1749244241594,-480.0,0.00027397,5]
[364795840,1749244241603,-480.0,0.00027397,5]
[364795842,1749244241612,-480.0,0.00027397,5]
[364795844,1749244241622,-480.0,0.00027397,5]
[364795846,1749244241633,-513.24,0.00027397,5]
[364795847,1749244241642,-480.0,0.00027397,5]
[364795850,1749244241652,-661.08,0.00027397,5]
[364795852,1749244241661,-480.0,0.00027397,5]
[364795853,1749244241671,-480.0,0.00027397,5]
[364795855,1749244241681,-496.08,0.00027397,5]
[364795857,1749244241691,-480.0,0.00027397,5]
[364795859,1749244241701,-480.0,0.00027397,5]
[364795861,1749244241710,-480.0,0.00027397,5]
[364795864,1749244241719,-480.0,0.00027397,5]
[364795865,1749244241728,-480.0,0.00027397,5]
[364795867,1749244241738,-816.52,0.00027397,5]
[364795869,1749244241747,-480.0,0.00027397,5]
[364795871,1749244241756,-480.0,0.00027397,5]
[364795873,1749244241765,-587.63523916,0.00027397,5]
[364795875,1749244241774,-989.58,0.00027397,5]
[364795877,1749244241784,-480.0,0.00027397,5]
[364795879,1749244241793,-480.0,0.00027397,5]
[364795881,1749244241802,-480.0,0.00027397,5]
[364795883,1749244241810,-480.0,0.00027397,5]
[364795885,1749244241819,-480.0,0.00027397,5]
[364795887,1749244241829,-480.0,0.00027397,5]
[364795889,1749244241838,-369.55058654,0.00027397,5]
[364795891,1749244241847,-480.0,0.00027397,5]
[364795893,1749244241856,-602.89,0.00027397,5]
[364795895,1749244241865,-480.0,0.00027397,5]
[364795897,1749244241873,-480.0,0.00027397,5]
[364795899,1749244241882,-480.0,0.00027397,5]
[364795901,1749244241892,-480.0,0.00027397,5]
[364795903,1749244241902,-480.0,0.00027397,5]
[364795905,1749244241911,-503.25,0.00027397,5]
[364795907,1749244241921,-480.0,0.00027397,5]
[364795909,1749244241930,-480.0,0.00027397,5]
[364795911,1749244241939,-480.0,0.00027397,5]
[364795913,1749244241948,-480.0,0.00027397,5]
[364795915,1749244241957,-480.0,0.00027397,5]
[364795917,1749244241965,-488.77,0.00027397,5]
[364795919,1749244241975,-480.0,0.00027397,5]
[364795921,1749244241984,-480.0,0.00027397,5]
[364795923,1749244241993,-845.34,0.00027397,5]
[364795925,1749244242001,-480.0,0.00027397,5]
[364795927,1749244242011,-480.0,0.00027397,5]
[364795929,1749244242021,-561.45497211,0.00027397,5]
[364795931,1749244242030,-480.0,0.00027397,5]
[364795933,1749244242039,-480.0,0.00027397,5]
[364795935,1749244242048,-480.0,0.00027397,5]
[364795937,1749244242057,-480.0,0.00027397,5]
[364795939,1749244242066,-480.0,0.00027397,5]
[364795941,1749244242075,-480.0,0.00027397,5]
[364795942,1749244242084,-480.0,0.00027397,5]
[364795945,1749244242093,-1000.0,0.00027397,5]
[364795946,1749244242102,-480.0,0.00027397,5]
[364795949,1749244242111,-488.13,0.00027397,5]
[364795950,1749244242120,-480.0,0.00027397,5]
[364795952,1749244242130,-480.0,0.00027397,5]
[364795954,1749244242138,-493.88,0.00027397,5]
[364795956,1749244242148,-480.0,0.00027397,5]
[364795958,1749244242157,-480.0,0.00027397,5]
[364795960,1749244242166,-480.0,0.00027397,5]
[364795962,1749244242175,-480.0,0.00027397,5]
[364795965,1749244242209,-480.0,0.00027397,5]
[364795967,1749244242219,-814.13,0.00027397,5]
[364795968,1749244242228,-480.0,0.00027397,5]
[364795970,1749244242238,-480.0,0.00027397,5]
[364795972,1749244242247,-480.0,0.00027397,5]
[364795974,1749244242257,-331.25284483,0.00027397,5]
[364795976,1749244242266,-243.932424,0.00027397,5]
[364795978,1749244242275,-576.66,0.00027397,5]
[364795980,1749244242284,-480.0,0.00027397,5]
[364795982,1749244242293,-600.0,0.00027397,30]
[364795984,1749244242302,-480.0,0.00027397,5]
[364795986,1749244242311,-480.0,0.00027397,5]
[364795988,1749244242320,-480.0,0.00027397,5]
[364795990,1749244242330,-385.50782476,0.00027397,5]
[364795992,1749244242339,-693.08,0.00027397,5]
[364795994,1749244242348,-480.0,0.00027397,5]
[364795996,1749244242357,-635.37,0.00027397,5]
[364795998,1749244242366,-480.0,0.00027397,5]
[364796000,1749244242375,-480.0,0.00027397,5]
[364796002,1749244242385,-6369.47,0.00027397,5]
[364796004,1749244242394,-759.78,0.00027397,5]
[364796006,1749244242403,-1000.0,0.00027397,2]
[364796008,1749244242412,-480.0,0.00027397,5]
[364796010,1749244242421,-1326.82,0.00027397,5]
[364796012,1749244242430,-1508.83,0.00027397,5]
[364796014,1749244242441,-480.0,0.00027397,5]
[364796016,1749244242450,-480.0,0.00027397,5]
[364796018,1749244242460,-480.0,0.00027397,5]
[364796020,1749244242469,-787.8,0.00027397,5]
[364796022,1749244242478,-508.09,0.00027397,5]
[364796024,1749244242488,-683.05,0.00027397,5]
[364796026,1749244242498,-1314.21,0.00027397,5]
[364796028,1749244242507,-480.0,0.00027397,5]
[364796030,1749244242517,-953.5,0.00027397,5]
[364796032,1749244242526,-645.4,0.00027397,5]
[364796034,1749244242536,-480.0,0.00027397,5]
[364796036,1749244242546,-480.0,0.00027397,5]
[364796038,1749244242556,-945.39,0.00027397,5]
[364796040,1749244242565,-966.02,0.00027397,5]
[364796042,1749244242574,-480.91,0.00027397,5]
[364796044,1749244242583,-650.58,0.00027397,5]
[364796046,1749244242595,-480.0,0.00027397,5]
[364796048,1749244242605,-1563.49,0.00027397,5]
[364796050,1749244242614,-480.0,0.00027397,5]
[364796052,1749244242623,-1630.49,0.00027397,5]
[364796054,1749244242632,-480.0,0.00027397,5]
[364796056,1749244242642,-756.25,0.00027397,5]
[364796058,1749244242652,-1110.62,0.00027397,5]
[364796060,1749244242662,-666.05,0.00027397,5]
[364796062,1749244242672,-480.0,0.00027397,5]
[364796064,1749244242682,-480.0,0.00027397,5]
[364796066,1749244242691,-643.59,0.00027397,5]
[364796068,1749244242703,-480.0,0.00027397,5]
[364796070,1749244242712,-793.76,0.00027397,5]
[364796072,1749244242721,-2265.64,0.00027397,5]
[364796074,1749244242730,-480.0,0.00027397,5]
[364796076,1749244242739,-480.0,0.00027397,5]
[364796078,1749244242749,-480.0,0.00027397,5]
[364796080,1749244242758,-1668.65,0.00027397,5]
[364796082,1749244242768,-480.0,0.00027397,5]
[364796084,1749244242777,-869.09,0.00027397,5]
[364796086,1749244242786,-634.85,0.00027397,5]
[364796088,1749244242795,-542.22,0.00027397,5]
[364796090,1749244242804,-480.0,0.00027397,5]
[364796092,1749244242813,-725.41,0.00027397,5]
[364796094,1749244242822,-677.18,0.00027397,5]
[364796096,1749244242831,-480.0,0.00027397,5]
[364796098,1749244242840,-480.0,0.00027397,5]
[364796100,1749244242849,-480.0,0.00027397,5]
[364796102,1749244242859,-705.26,0.00027397,5]
[364796104,1749244242868,-656.63,0.00027397,5]
[364796106,1749244242877,-480.0,0.00027397,5]
[364796108,1749244242887,-480.0,0.00027397,5]
[364796111,1749244242896,-2278.48,0.00027397,5]
[364796113,1749244242905,-480.0,0.00027397,5]
[364796115,1749244242914,-480.0,0.00027397,5]
[364796117,1749244242924,-480.0,0.00027397,5]
[364796119,1749244242933,-480.0,0.00027397,5]
[364796121,1749244242942,-1040.64,0.00027397,5]
[364796123,1749244242952,-1746.36,0.00027397,5]
[364796125,1749244242961,-480.0,0.00027397,5]
[364796127,1749244242969,-480.0,0.00027397,5]
[364796129,1749244242978,-480.0,0.00027397,5]
[364796131,1749244242988,-627.6,0.00027397,5]
[364796134,1749244242997,-626.49955975,0.00027397,5]
[364796136,1749244243007,-480.0,0.00027397,5]
[364796138,1749244243017,-703.18,0.00027397,5]
[364796140,1749244243026,-480.0,0.00027397,5]
[364796143,1749244243036,-480.0,0.00027397,5]
[364796145,1749244243046,-500.0,0.00027397,5]